Cogmind - Beta 17.1 @@@ ROGUE MODE // 2026.09.07 @ 21:51:28 Player: C0GU55Y Result: Destroyed by I7-8PF(R) with Subdweller Laser Performance ------------- Evolutions (0) 0 Regions Visited (3) 600 Robots Destroyed (31) 155 Value Destroyed (810) 810 Prototype IDs (17) 340 Alien Tech Used (0) 0 Bonus (30) 30 TOTAL SCORE: 1935 Bonus ------- Follower Combat Kills 47 Friendly Fire -17 Cogmind --------- Core Integrity 0/250 Matter 281/300 Energy 249/250 System Corruption 0% Temperature Cool (6) Movement Rolling (125) Ox3 Location -10/Subcaves Parts ------- > --- POWER (1) -------- Ion Engine > --- PROPULSION (2) --- Spiked Treads Wheel > --- UTILITY (2) ------ Large Storage Unit Experimental Sensor Array > --- WEAPON (2) ------- EM Pulse Gun Barrage Gun > --- INVENTORY (15) --- Spiked Treads Wheel Wheel Medium Matter Pod (63) Sensor Array Scrap Shield EM Pulse Gun EM Pulse Gun Beam Rifle Subdweller Shrapnel Launcher Mining Laser Peak State ------------ > --- POWER ------------ Light Ion Engine > --- PROPULSION ------- Spiked Treads Wheel > --- UTILITY ---------- Large Storage Unit Experimental Sensor Array > --- WEAPON ----------- Battle Rifle Barrage Gun > --- INVENTORY -------- Ion Engine Spiked Treads Wheel Wheel Medium Matter Pod Sensor Array Light Armor Plating Scrap Shield EM Pulse Gun EM Pulse Gun EM Pulse Gun Beam Rifle Subdweller Shrapnel Launcher Mining Laser [Rating: 21] Favorites ----------- Power Light Ion Engine Engine Light Ion Engine Propulsion Wheel Treads Spiked Treads Wheel Wheel Utility Large Storage Unit Device Experimental Sensor Array Storage Large Storage Unit Protection Light Armor Plating Weapon Light Assault Rifle Energy Gun EM Pulse Gun Ballistic Gun Light Assault Rifle Launcher Subdweller Shrapnel Launcher Special Weapon Mining Laser Build | -11 -10 -10 -10 ------- Run | Yrd Mat Min Sub Slots Evolved . | . . . . Power . | . . . . Propulsion . | . . . . Utility . | . . . . Weapon . | . . . . Parts Attached 29 | 7 12 3 7 Power 3 | 1 1 . 1 Engine 3 | 1 1 . 1 Core . | . . . . Reactor . | . . . . Propulsion 7 | 2 3 . 2 Treads 4 | 1 1 . 2 Leg . | . . . . Wheel 3 | 1 2 . . Hover . | . . . . Flight . | . . . . Utility 8 | 2 4 2 . Device 3 | 1 1 1 . Storage 3 | 1 2 . . Processor . | . . . . Hackware . | . . . . Protection 2 | . 1 1 . Artifact . | . . . . Weapon 11 | 2 4 1 4 Energy Gun 3 | 1 1 . 1 Energy Cannon . | . . . . Ballistic Gun 6 | 1 2 1 2 Ballistic Cannon . | . . . . Launcher 1 | . . . 1 Special Weapon 1 | . 1 . . Impact Weapon . | . . . . Slashing Weapon . | . . . . Piercing Weapon . | . . . . Special Melee Weapon . | . . . . Unidentified Prototypes 1 | . . 1 . Parts Lost 3 | . . . 3 Power 1 | . . . 1 Propulsion . | . . . . Utility 1 | . . . 1 Weapon 1 | . . . 1 Highest Loss Streak 1 | . . . 1 To Critical Strikes . | . . . . Average Backups 13 | 4 12 15 14 Power . | . 1 1 . Propulsion 3 | 2 3 3 3 Utility 3 | . 2 4 4 Weapon 5 | . 4 6 5 Tool/Special . | . . . . Unused Backups 12 | . . 3 9 Power . | . . . . Propulsion 4 | . . 1 3 Utility 4 | . . 1 3 Weapon 4 | . . 1 3 Tool/Special . | . . . . Average Slot Usage (%) 99 | . 100 100 99 Engine 13 | . 14 14 13 Treads 14 | . 14 14 14 Wheel 14 | . 14 14 14 Device 12 | . 9 10 13 Storage 14 | . 14 14 14 Protection 1 | . 4 3 . Energy Gun 4 | . 10 . 2 Ballistic Gun 16 | . 16 28 15 Launcher 3 | . . . 5 Special Weapon 3 | . 1 . 4 Peak Build Rating 21 | 7 8 16 21 Average Rating 14 | 5 7 8 18 On Entrance 7 | . 7 8 16 Avg Prop Armor Cover (%) 11 | 14 10 12 11 Naked Turns . | . . . . Heaviest Build 38 | 14 32 28 38 Greatest Support 20 | 16 20 10 20 Greatest Overweight (x) 3 | . 2 2 3 Average Overweight (x) 2 | . 1 2 2 Largest Inventory Capacity 15 | 8 15 15 15 Average Capacity 14 | 7 12 15 15 Most Carried 15 | 6 15 15 15 Average Carried 13 | 4 12 14 14 Final Capacity 15 | 8 15 15 15 Final Carried 15 | 6 15 15 12 Class Distribution -------------------- 100% | Mutant Dominant Class ---------------- Mutant | -10/Materials Mutant | -10/Mines Mutant | -10/Subcaves Resources | -11 -10 -10 -10 ----------- Run | Yrd Mat Min Sub Matter Collected 1311 | 287 340 52 632 Remotely . | . . . . Salvage Created 967 | 150 513 17 287 Parts 53 | 9 26 3 15 Haulers Intercepted 2 | . 2 . . Recyclers Shooed 1 | . 1 . . Parts Field Recycled . | . . . . Retrieved Matter . | . . . . Parts Self-Destructed 23 | . . . 23 Prevented . | . . . . Parts Restored . | . . . . Kills | -11 -10 -10 -10 ------- Run | Yrd Mat Min Sub Combat Hostiles Destroyed 21 | . 10 1 10 Guns 14 | . 8 1 5 AOE 7 | . 2 . 5 Classes Destroyed 7 | 2 4 . 1 Tunneler 4 | 4 . . . Hauler 2 | . 2 . . Recycler 1 | 1 . . . Watcher 3 | . 3 . . Swarmer 4 | . 3 1 . Grunt 7 | . 7 . . Subdweller 10 | . . . 10 Best Kill Streak 5 | 3 5 1 3 Combat Bots Only 3 | . 3 1 3 Max Kills in Single Turn 2 | 1 2 1 1 Gunslinging . | . . . . Exploded 2 | . 2 . 1 Melee . | . . . . Uniques/NPCs Destroyed . | . . . . Combat | -11 -10 -10 -10 -------- Run | Yrd Mat Min Sub Hostile Shots Fired 108 | . 53 14 41 Missed 40 | . 25 4 11 Hits 68 | . 28 10 30 Projectile 68 | . 28 10 30 Critical Strikes 2 | . 1 1 . Damage Taken 1194 | . 322 85 787 Core 271 | . 31 29 211 Absorbed by Shields . | . . . . Core Remaining (%) 100 | 100 . . . Volleys Fired 113 | 9 51 6 47 Largest 2 | 2 2 2 2 Hottest 100 | 60 100 40 100 Shots Fired 205 | 18 101 12 74 Gun 177 | 18 100 12 47 Cannon . | . . . . Launcher 13 | . . . 13 Special 15 | . 1 . 14 Kinetic 125 | 9 50 12 54 Thermal 39 | 9 16 . 14 Explosive . | . . . . Electromagnetic 41 | . 35 . 6 Robot Hit Streak 9 | 3 7 3 9 Robot Miss Streak 5 | 3 5 2 2 Penetration Max . | . . . . Secondary Targets 2 | . 2 . . Max Gunslinging Chain 1 | . 1 . . Shots Hit Robots 103 | 10 46 5 42 Core Hits 54 | 6 27 1 20 Critical Kills . | . . . . Critical Parts Destroyed . | . . . . Critical Strikes . | . . . . Melee Attacks . | . . . . Impact . | . . . . Slashing . | . . . . Piercing . | . . . . Sneak Attacks . | . . . . Combat Hostiles . | . . . . Follow-up Attacks . | . . . . Damage Inflicted 2183 | 156 768 66 1193 Guns 1305 | 156 676 66 407 Cannons . | . . . . Explosions 878 | . 92 . 786 Melee . | . . . . Ramming . | . . . . Kinetic 1603 | 88 288 66 1161 Thermal 270 | 68 202 . . Explosive . | . . . . Electromagnetic 310 | . 278 . 32 Impact . | . . . . Slashing . | . . . . Piercing . | . . . . Highest Corruption . | . . . . Average Corruption . | . . . . Corruption Purged . | . . . . Corruption Blocked . | . . . . Overload Shots . | . . . . Overflow Damage . | . . . . Projectiles . | . . . . Explosions . | . . . . Melee . | . . . . Knockbacks . | . . . . Impact . | . . . . Kinetic . | . . . . Secondary . | . . . . Self-Inflicted Damage 80 | . . . 80 Shots 2 | . . . 2 Rammed . | . . . . Targets Rammed . | . . . . Kicked . | . . . . Crushed . | . . . . Highest Temperature 183 | . 183 12 4 Average Temperature 45 | . 48 6 2 Received Heat Transfer 354 | . 165 . 189 Siege Activations . | . . . . Martial Activations . | . . . . Shielding Activations . | . . . . Robots Disrupted . | . . . . Combat Hostiles . | . . . . Robots Corrupted . | . . . . Combat Hostiles . | . . . . Parts Fried 3 | . 3 . . Impact Corruptions . | . . . . Robots Melted . | . . . . Combat Hostiles . | . . . . Parts Melted 1 | . . . 1 Heat Transferred 500 | 150 350 . . Parts Sabotaged . | . . . . Parts Stolen . | . . . . Parts Stripped . | . . . . Power Chain Reactions 1 | . 1 . . Alert | -11 -10 -10 -10 ------- Run | Yrd Mat Min Sub Maximum Alert Level . | . . . . Low Security (%) 100 | 100 100 100 . Level 1 . | . . . . Level 2 . | . . . . Level 3 . | . . . . Level 4 . | . . . . Level 5 . | . . . . High Security . | . . . . Max Security . | . . . . Peak Influence 135 | 10 135 64 . Initial 21 | . . 21 . Average 29 | 1 41 14 . Influence Increases 444 | 25 324 95 . Destroy 0b10 Robot/C 280 | . 200 80 . Destroy 0b10 Robot/NC 50 | 25 25 . . Destroy Leader 50 | . 40 10 . Allied During Kill 5 | . . 5 . Successful Hack 25 | . 25 . . Disable Machine 30 | . 30 . . Destroy Structure 4 | . 4 . . Influence Decreases 444 | 25 270 149 . Entered New Map 33 | . . 33 . Time Decay 411 | 25 270 116 . Squads Dispatched 1 | . 1 . . Investigation . | . . . . Extermination . | . . . . Reinforcement 1 | . 1 . . Assault . | . . . . Garrison . | . . . . Intercept . | . . . . Searches Triggered . | . . . . Construction Impeded . | . . . . Haulers Reinforced . | . . . . Active Scanning Responses . | . . . . Cargo Convoy Interrupts . | . . . . Stealth | -11 -10 -10 -10 --------- Run | Yrd Mat Min Sub Distress Signals 2 | . 2 . . Communications Jammed . | . . . . Distress Signals . | . . . . Times Spotted 41 | . 22 8 11 Peak Tracking Total 4 | . 4 3 2 Tactical Retreats . | . . . . Traps | -11 -10 -10 -10 ------- Run | Yrd Mat Min Sub Traps Triggered . | . . . . Indirectly . | . . . . Trap Hack Attempts . | . . . . Triggered . | . . . . Disarmed . | . . . . Reprogrammed . | . . . . Reused . | . . . . Traps Extracted . | . . . . Installed . | . . . . Triggered . | . . . . Machines | -11 -10 -10 -10 ---------- Run | Yrd Mat Min Sub Machines Disabled 2 | . 2 . . Max in Single Turn 1 | . 1 . . Machines Repaired . | . . . . Machines Dismantled . | . . . . Machines Sabotaged . | . . . . Overloaded Fab Kills . | . . . . Hacking | -11 -10 -10 -10 --------- Run | Yrd Mat Min Sub Machines Accessed 7 | . 5 1 1 Terminals 6 | . 5 1 . Fabricators . | . . . . Repair Stations . | . . . . Recycling Units . | . . . . Scanalyzers . | . . . . Garrison Access . | . . . . Total Hacks 15 | . 11 3 1 Successful 6 | . 5 . 1 Failed 9 | . 6 3 . Catastrophic 2 | . 2 . . Database Lockouts . | . . . . Manual 10 | . 7 3 . Terminals 14 | . 11 3 . Fabricators . | . . . . Repair Stations . | . . . . Recycling Units . | . . . . Scanalyzers . | . . . . Garrison Access . | . . . . Terminal Hacks 6 | . 5 . 1 Prototype ID Bank 1 | . 1 . . Branch Access Points 1 | . 1 . . Terminal Index 1 | . 1 . . Locate Traps 1 | . 1 . . Registered Components 1 | . 1 . . Proto ID Catalog 1 | . . . 1 Fabricator Hacks . | . . . . Repair Station Hacks . | . . . . Recycling Unit Hacks . | . . . . Scanalyzer . | . . . . Garrison Access Hacks . | . . . . Unauthorized Hacks . | . . . . Terminals . | . . . . Fabricators . | . . . . Repair Stations . | . . . . Recycling Units . | . . . . Scanalyzers . | . . . . Garrison Access . | . . . . Data Cores Recovered . | . . . . Used . | . . . . Hacking Detections 5 | . 4 1 . Full Trace Events . | . . . . Feedback Events . | . . . . Feedback Blocked . | . . . . Robot Schematics Acquired . | . . . . Robots Built . | . . . . Authchips . | . . . . Time . | . . . . Total Robot Build Rating . | . . . . Part Schematics Acquired . | . . . . Parts Built . | . . . . Authchips . | . . . . Time . | . . . . Total Part Build Rating . | . . . . Part Studies Acquired . | . . . . Parts Repaired . | . . . . Time . | . . . . Parts Recycled . | . . . . Recycled Matter . | . . . . Retrieved Matter . | . . . . Retrieved Components . | . . . . Parts Scanalyzed . | . . . . Part Schematics Acquired . | . . . . Parts Damaged . | . . . . Bothacking | -11 -10 -10 -10 ------------ Run | Yrd Mat Min Sub Used RIF Installer . | . . . . Robots Hacked . | . . . . Non-combat . | . . . . Combat . | . . . . Robot Hacks Applied . | . . . . Relay Couplers Released . | . . . . Fabnet Peak Effective % . | . . . . Robots Rewired . | . . . . Allies Hacked . | . . . . Hacks Repelled . | . . . . Allies | -11 -10 -10 -10 -------- Run | Yrd Mat Min Sub Total Allies 1 | . . 1 . Largest Group 1 | . . 1 1 Highest-Rated Group 31 | . . 31 31 Highest-Rated Ally 31 | . . 31 31 Total Orders . | . . . . Ally Attacks 9 | . . 9 . Total Damage 84 | . . 84 . Kills 3 | . . 3 . Allies Corrupted . | . . . . Allies Melted . | . . . . Intel | -11 -10 -10 -10 ------- Run | Yrd Mat Min Sub Active Infowar (turns) 3102 | 8 563 334 2197 Sensors 2908 | . 377 334 2197 Seismic 194 | 8 186 . . Robot Analysis Total . | . . . . Derelict Logs Recovered 2 | . . 1 1 Drone Launches . | . . . . Drone Recoveries . | . . . . Exploration | -11 -10 -10 -10 ------------- Run | Yrd Mat Min Sub Turns Passed 3642 | 124 817 435 2266 Spaces Moved 2464 | 82 435 340 1607 Core 2 | 2 . . . Treads 247 | . 108 . 139 Legs . | . . . . Wheels 2215 | 80 327 340 1468 Hover . | . . . . Flight . | . . . . Fastest Speed 50 | 50 100 110 110 Average Speed 127 | 98 138 110 129 Slowest Speed 260 | 100 240 110 260 Overloaded Moves . | . . . . Propulsion Burnouts . | . . . . Robots Hopped . | . . . . Potential Cave-ins . | . . . . Cave-ins Triggered . | . . . . Exploration Rate (%) 53 | 4 70 74 67 Regions Visited 3 Branch Regions 2 Pre-discovered Areas 2 | . . 2 . Known Exits Taken 1 | . 1 . . Unknown Exits Taken 2 | 1 . 1 . Scrap Searched 7 | . . 1 6 Spaces Dug . | . . . . Terrain Destroyed 145 | . 3 . 142 Melee . | . . . . Projectile . | . . . . AOE 145 | . 3 . 142 Terrain Rammed . | . . . . Walls Destroyed . | . . . . Machines Disabled . | . . . . Actions | -11 -10 -10 -10 --------- Run | Yrd Mat Min Sub Total 2741 | 103 555 393 1690 Wait 68 | . 33 34 1 Move 2461 | 81 434 339 1607 Hop . | . . . . Pick Up 27 | 6 13 3 5 Fast Attach 12 | 7 3 1 1 Attach 3 | . . . 3 Detach 1 | . 1 . . Swap 31 | . 9 4 18 Drop 25 | . 11 6 8 Fire 113 | 9 51 6 47 Melee . | . . . . Ram . | . . . . Kick . | . . . . Crush . | . . . . Escape Stasis . | . . . . Rewire . | . . . . Trap . | . . . . Miscellaneous . | . . . . Route ------- -11/Scrapyard -10/Materials (discovered 3 exits: [*Mat x2] / *Min) -10/Mines (discovered 3 exits: [*Mat x2] / *Sub) -10/Subcaves History --------- Turn | Location | Event 11 | -11/Scrapyard | Discovered new exit (range 16) 125 | -11/Scrapyard | Entered Materials 198 | -10/Materials | Discovered new exit (range 9) 333 | -10/Materials | Build established: Mutant 483 | -10/Materials | Discovered new exit (range 6) 521 | -10/Materials | Identified exit to Mines 822 | -10/Materials | Discovered new exit (range 16) 942 | -10/Materials | Entered Mines 948 | -10/Mines | Met a Derelict bent on vengeance 953 | -10/Mines | Escorted by a lone wolf Derelict 973 | -10/Mines | Learned location of Storage (-7) 1016 | -10/Mines | Discovered new exit (range 6) 1025 | -10/Mines | Joined a pair of Derelicts in attacking an 0b10 outpost 1115 | -10/Mines | Discovered new exit (range 10) 1283 | -10/Mines | Learned location of Mines (-9) 1328 | -10/Mines | Found a damaged Exp. Sensor Array with a note attached 1331 | -10/Mines | Found Prototype Device 1331 | -10/Mines | Identified Exp. Sensor Array 1352 | -10/Mines | Discovered new exit (range 13) 1377 | -10/Mines | Entered Subcaves 1377 | -10/Subcaves | Accompanied by 1 ally 1405 | -10/Subcaves | Core integrity fell below 50% 1603 | -10/Subcaves | Shifting Twisted Machinery released Shrapnel Trap 1617 | -10/Subcaves | Shifting Twisted Machinery released Barrage Gun 1772 | -10/Subcaves | Shifting Twisted Machinery released Spk. Treads 1780 | -10/Subcaves | Shifting Twisted Machinery released Sub. Power Source 1799 | -10/Subcaves | A swath of the cavern ceiling suddenly collapsed 1980 | -10/Subcaves | Learned Materials interactive machine intel 2238 | -10/Subcaves | Shifting Twisted Machinery released Sub. Shrapnel Launcher 2258 | -10/Subcaves | Shifting Twisted Machinery released Shrapnel Trap 2619 | -10/Subcaves | Visited 4L-MR0's lab 2668 | -10/Subcaves | Ambushed by Subdwellers from Twisted Machinery 2706 | -10/Subcaves | Core integrity fell below 20% 2714 | -10/Subcaves | Ambushed by Subdweller buried in earth 2815 | -10/Subcaves | A swath of the cavern ceiling suddenly collapsed 3643 | -10/Subcaves | Destroyed by I7-8PF(R) with Subdweller Laser Last Messages --------------- 03146_ Acquired 31 matter. 03184_ Acquired 5 matter. 03186_ Acquired 8 matter. 03194_ Acquired 5 matter. 03199_ Acquired 9 matter. 03202_ Acquired 5 matter. 03213_ Acquired 13 matter. 03280_ Subatomizers dissect the Sub. Laser. 03502_ Acquired 58 matter. 03503_ Acquired 32 matter. 03571_ Lgt. Armor Plating destroyed. 03576_ 1V-GG3(R) destroyed. 03579_ Sub. Shrapnel Launcher shoots sparks and powers down. 03583_ V5-57Z(R) destroyed. 03592_ Acquired 34 matter. 03593_ Acquired 21 matter. 03620_ Battle Rifle destroyed. 03626_ 69-T17(R) destroyed. 03631_ Acquired 51 matter. Map ----- +----------------------------------------------------+ | ?????????# " """""""?????????????????? | | ?????????## " ""##"" ##??????????????? | | ??????????# ###" ""#?"""""#?????????????? | | ??????????# #??##"" ""#?#""""#?????????????? | | ??????????# #????#" ####""""#?????????????? | | ??????????##??????# """#"""#??????????????? | | ??????????????????#" "" ""#???????????????? | | ??????????????????#" " "####????????????? | | ??????????????????#" " #????????????? | | ??????????????????#" #????????????? | | ??????????????????# " #????????????? | | ?????????????????#"#"" & #????????????? | | ?????????????????#### ! #????????????? | | ???????????????????# & ! #????????????? | | ???????????????????# #""*& "#????????????? | | ??????????????????## # ##????????????? | | ??????????????????# ###" #????????????? | | ??????????????????# !=#?#""#####????????????? | | ??????????????????## !##"" #????????????????? | | ???????????????#???#* ##" ????????????????? | | ???????????????# ## ###"####???????????????? | | ??????????????## "" "" ##?????????????????? | | ??????????????# """ """#?????????????????? | | ??????????????# """"" ""#?????????????????? | | ??????????????##""""### ##?????????????????? | | ???????????????##" "??###@#?????????????????? | | ?????????????????"""??? #????????????????? | | ?????????????????? ?? "" #???????????????? | | ????????????????????# " R ##???????????????? | | ????????????????????## ## #????????????????? | | ?????????????????????##?# %#????????????????? | | ???????????????????????? " #????????????????? | | ???????????????????????? """????????????????? | | ???????????????????????? ????????????????? | | ????????????????????????# ????????????????? | | ????????????????????????? %%????????????????? | | ????????????????????????? #???????????????? | | ?????????????????????????? ##???????????????? | | ????????????????????????????????????????????? | | ????????????????????????????????????????????? | | ????????????????????????????????????????????? | | ????????????????????????????????????????????? | | ????????????????????????????????????????????? | | ????????????????????????????????????????????? | | ????????????????????????????????????????????? | | ????????????????????????????????????????????? | | ????????????????????????????????????????????? | | ????????????????????????????????????????????? | | ????????????????????????????????????????????? | | ????????????????????????????????????????????? | +----------------------------------------------------+ Best States ------------- Heat Dissipation 25 Energy Generation 10 Energy Capacity 250 Matter Stores 300 Matter Capacity 300 Sight Range 16 Robot Scan Range 20 Terrain Scan Density 10 Armor Coverage 150 Evasion (%) 40 Recoil Reduction 1 Item Schematics ----------------- None Robot Schematics ------------------ None Fabricated ------------ Nothing Repaired ---------- Nothing Studied --------- None Alien Tech Used ----------------- None Achievements -------------- Do Not Disturb Challenges ------------ None Game ------ Seed LatentBladeSightfinder Manual? 0 Play Time 00:31:03 Cumulative 134.6 hours Start 2026.09.07 @ 20:33:46 End 2026.09.07 @ 21:51:28 Sessions 1 Manual Loads 0 Difficulty Rogue Special Mode None Game No. 155 Rogue 155 Adventurer 0 Explorer 0 Win Type - Total 0 Types 0/0/0/0/0/0/0/0/0/0 Lore% 65 Gallery% 51 Achievement% 35 Wizard Run 0 Options --------- Layout 1 ASCII 0 Keyboard 0 Movement Mouse Keybinds 0 Fullscreen 1 Font 24/Smallcaps Map View 50x35 Zoom Use 0% Tactical HUD 1 Map Filters NONE Filters NONE Steam 1 RUN: 7f91c081-1e59-476d-9ff9-7368b55e9e8e